lending/lending_fUSD_20260124
["ID","MTS","AMOUNT","RATE_DAILY","PERIOD"]
[403230782,1769275841372,-200.0,0.00017327,2]
[403230784,1769275841381,-200.0,0.00017327,2]
[403230786,1769275841390,-200.0,0.00017327,2]
[403230788,1769275841400,-200.0,0.00017327,2]
[403230790,1769275841410,-200.0,0.00017327,2]
[403230792,1769275841419,-200.0,0.00017327,2]
[403230794,1769275841428,-200.0,0.00017327,2]
[403230796,1769275841437,-200.0,0.00017327,2]
[403230798,1769275841446,-200.0,0.00017327,2]
[403230801,1769275841457,-200.0,0.00017327,2]
[403230803,1769275841466,-200.0,0.00017327,2]
[403230805,1769275841475,-200.0,0.00017327,2]
[403230807,1769275841484,-200.0,0.00017327,2]
[403230809,1769275841494,-200.0,0.00017327,2]
[403230811,1769275841503,-200.0,0.00017327,2]
[403230813,1769275841512,-200.0,0.00017327,2]
[403230815,1769275841521,-200.0,0.00017327,2]
[403230817,1769275841530,-188.0,0.00017327,2]
[403230819,1769275841539,-228.92,0.00017377,2]
[403230821,1769275841548,-2368.5,0.00017396,2]
[403230823,1769275841558,-500.0,0.00017399,2]
[403230825,1769275841567,-2000.0,0.000174,2]
[403230827,1769275841576,-1613.0,0.00017403,2]
[403230829,1769275841585,-159.59843399,0.00017417,2]
[403230831,1769275841594,-202.0,0.0001743,2]
[403230833,1769275841603,-200.0,0.0001744,2]
[403230835,1769275841612,-3357.0,0.00017472,2]
[403230837,1769275841621,-200.0,0.00017478,2]
[403230839,1769275841630,-6453.0,0.00017478,2]
[403230841,1769275841639,-221.9,0.00017499,2]
[403230843,1769275841648,-9577.0107416,0.000175,2]
[403230845,1769275841659,-1189.38769854,0.000175,3]
[403230847,1769275841667,-6301.43742151,0.000175,2]
[403230849,1769275841678,-3648.7256927,0.000175,2]
[403230851,1769275841686,-5533.0,0.000175,3]
[403230853,1769275841695,-152.0,0.00017506,6]
[403230855,1769275841704,-161.99,0.00017509,2]
[403230857,1769275841713,-2000.0,0.00017516,2]
[403230859,1769275841722,-2000.0,0.00017516,2]
[403230861,1769275841731,-1946.80273923,0.00017516,2]
[403230863,1769275841740,-2000.0,0.00017516,2]
[403230864,1769275841749,-1497.73333874,0.00017516,2]
[403230866,1769275841759,-2000.0,0.00017516,2]
[403230868,1769275841768,-2000.0,0.00017516,2]
[403230870,1769275841777,-2000.0,0.00017516,2]
[403230872,1769275841786,-2000.0,0.00017516,2]
[403230874,1769275841795,-2368.5,0.00017517,2]
[403230876,1769275841804,-1262.73019669,0.00017534,2]
[403230878,1769275841813,-1000.0,0.00017534,2]
[403230880,1769275841822,-200.0,0.00017554,2]
[403230882,1769275841831,-997.17336156,0.00017555,2]
[403230884,1769275841839,-244.0,0.00017618,2]
[403230886,1769275841848,-2368.5,0.00017638,2]
[403230888,1769275841857,-5404.10438685,0.0001764,2]
[403230890,1769275841866,-484.52,0.00017642,2]
[403230892,1769275841876,-4603.187,0.00017643,2]
[403230894,1769275841885,-334.428,0.00017643,2]
[403230896,1769275841894,-484.52,0.00017644,2]
[403230898,1769275841903,-484.52,0.00017644,2]
[403230900,1769275841913,-484.52,0.00017644,2]
[403230902,1769275841922,-484.52,0.00017644,2]
[403230904,1769275841931,-200.0,0.00017646,2]
[403230906,1769275841941,-719.15,0.00017657,2]
[403230908,1769275841950,-836.0,0.0001768,2]
[403230910,1769275841960,-151.3661,0.000177,2]
[403230912,1769275841970,-3662.0,0.000177,2]
[403230914,1769275841980,-3648.7256927,0.000177,2]
[403230916,1769275841989,-1000.0,0.00017717,2]
[403230918,1769275841998,-1000.0,0.00017721,2]
[403230920,1769275842008,-1000.0,0.00017726,2]
[403230922,1769275842017,-1000.0,0.00017729,2]
[403230924,1769275842026,-929.63069455,0.0001773,2]
[403230926,1769275842035,-200.0,0.00017757,2]
[403230928,1769275842043,-2368.5,0.00017759,2]
[403230930,1769275842053,-1000.0,0.00017768,2]
[403230932,1769275842062,-1000.0,0.00017772,2]
[403230934,1769275842071,-1000.0,0.00017781,2]
[403230936,1769275842081,-1000.0,0.00017789,2]
[403230938,1769275842090,-3748.0,0.00017794,2]
[403230940,1769275842099,-172.8753019,0.00017795,3]
[403230943,1769275842109,-37931.11459609,0.000178,2]
[403230945,1769275842119,-5533.0,0.000178,5]
[403230978,1769275842416,-500.0,0.00017808,2]
[403230980,1769275842426,-1000.0,0.00017808,2]
[403230982,1769275842436,-1062.33638913,0.00017812,2]
[403230984,1769275842445,-217.15233878,0.00017812,2]
[403230986,1769275842455,-1000.0,0.00017812,2]
[403230988,1769275842464,-1000.0,0.00017814,2]
[403230990,1769275842473,-2000.0,0.0001782,2]
[403230992,1769275842482,-2000.0,0.0001782,2]
[403230994,1769275842492,-231.38369303,0.0001782,2]
[403230996,1769275842501,-1468.46620434,0.00017822,2]
[403230998,1769275842510,-2590.54844732,0.00017822,2]
[403231000,1769275842519,-3875.30554666,0.00017822,2]
[403231002,1769275842528,-5243.4261,0.00017822,2]
[403231004,1769275842537,-5800.0,0.00017823,2]
[403231006,1769275842546,-150.0,0.00017827,2]
[403231008,1769275842555,-1000.0,0.00017828,2]
[403231010,1769275842564,-530.0,0.00017829,2]
[403231011,1769275842573,-96953.83922531,0.0001783,2]
[403231013,1769275842582,-5800.0,0.00017832,2]
[403231015,1769275842591,-3748.0,0.00017834,2]
[403231017,1769275842600,-5800.0,0.00017841,2]
[403231019,1769275842610,-150.0,0.00017841,2]
[403231021,1769275842619,-1000.0,0.00017847,2]
[403231023,1769275842628,-150.0,0.00017847,2]
[403231025,1769275842638,-25000.0,0.00017847,3]
[403231027,1769275842647,-5800.0,0.00017849,2]
[403231030,1769275842657,-150.0,0.00017849,2]
[403231032,1769275842666,-1000.0,0.00017849,2]
[403231034,1769275842676,-867.75,0.0001785,2]
[403231036,1769275842685,-150.0,0.00017854,2]
[403231038,1769275842695,-153.7074367,0.00017854,2]
[403231040,1769275842705,-200.0,0.00017855,2]
[403231042,1769275842714,-25000.0,0.00017856,3]
[403231044,1769275842723,-200.0,0.00017856,2]
[403231046,1769275842733,-5800.0,0.00017858,2]
[403231048,1769275842742,-500.0,0.00017862,2]
[403231050,1769275842751,-563.50315697,0.00017863,2]
[403231052,1769275842760,-25000.0,0.00017865,3]
[403231054,1769275842769,-5800.0,0.00017866,2]
[403231056,1769275842779,-183.21378386,0.00017873,2]
[403231058,1769275842788,-25000.0,0.00017874,3]
[403231060,1769275842797,-5800.0,0.00017874,2]
[403231061,1769275842806,-2368.5,0.00017879,2]
[403231064,1769275842815,-25000.0,0.00017882,3]
[403231065,1769275842828,-5800.0,0.00017883,2]
[403231067,1769275842837,-183.21378385,0.00017887,2]
[403231069,1769275842846,-25000.0,0.00017891,3]
[403231073,1769275842857,-5800.0,0.00017891,2]
[403231075,1769275842866,-793.45440139,0.00017895,2]
[403231078,1769275842876,-150.0,0.00017896,2]
[403231080,1769275842885,-295.81859598,0.00017899,2]
[403231082,1769275842894,-190.80620809,0.00017899,3]
[403231084,1769275842903,-7328.43512446,0.00017899,2]
[403231086,1769275842912,-4665.10379277,0.000179,2]
[403231088,1769275842920,-7328.43512446,0.000179,2]
[403231090,1769275842929,-25000.0,0.000179,3]
[403231092,1769275842939,-5800.0,0.000179,2]
[403231094,1769275842948,-410.36907363,0.000179,2]
[403231095,1769275842956,-7609.85651561,0.000179,3]
[403231097,1769275842966,-275.16490942,0.000179,2]
[403231099,1769275842976,-2014.56,0.000179,2]
[403231102,1769275842986,-17584.12788667,0.000179,2]
[403231103,1769275842995,-4665.10379277,0.000179,2]
[403231105,1769275843004,-3648.7256927,0.000179,2]
[403231107,1769275843013,-183.21378385,0.000179,2]
[403231110,1769275843023,-7328.43512446,0.000179,2]
[403231112,1769275843033,-627.35792608,0.000179,2]
[403231114,1769275843042,-6686.0,0.000179,2]
[403231116,1769275843051,-150.0,0.00017922,2]
[403231118,1769275843061,-150.0,0.00017923,2]
[403231120,1769275843070,-1000.0,0.00017923,2]
[403231122,1769275843079,-1000.0,0.00017949,2]
[403231124,1769275843088,-3748.0,0.00017959,2]
[403231126,1769275843098,-1000.0,0.00017966,2]
[403231128,1769275843107,-500.0,0.0001797,2]
[403231130,1769275843116,-500.0,0.0001797,2]
[403231132,1769275843125,-1000.0,0.0001797,2]
[403231134,1769275843134,-500.0,0.0001797,2]
[403231136,1769275843144,-500.0,0.0001797,2]
[403231138,1769275843154,-1000.0,0.0001797,2]
[403231140,1769275843163,-1000.0,0.0001797,2]
[403231141,1769275843172,-500.0,0.0001797,2]
[403231144,1769275843182,-1000.0,0.0001797,2]
[403231146,1769275843192,-500.0,0.0001797,2]
[403231148,1769275843201,-1000.0,0.0001797,2]
[403231150,1769275843210,-1000.0,0.0001797,2]
[403231152,1769275843220,-601.31337833,0.0001797,2]
[403231154,1769275843229,-1425.13914229,0.0001797,2]
[403231155,1769275843238,-150.0,0.0001797,2]
[403231157,1769275843247,-719.15,0.00017972,2]
[403231159,1769275843256,-15055.0,0.00017973,2]
[403231161,1769275843265,-765.0,0.00017973,2]
[403231163,1769275843274,-500.0,0.00017973,2]
[403231165,1769275843283,-150.0,0.00017973,2]
[403231167,1769275843292,-500.0,0.00017973,2]
[403231169,1769275843302,-163.10376799,0.00017973,2]
[403231171,1769275843311,-163.215227,0.00017973,2]
[403231173,1769275843323,-500.0,0.00017973,2]
[403231175,1769275843332,-500.0,0.00017973,2]
[403231177,1769275843341,-500.0,0.00017973,2]
[403231179,1769275843351,-500.0,0.00017973,2]
[403231181,1769275843360,-500.0,0.00017973,2]
[403231183,1769275843371,-500.0,0.00017973,2]
[403231185,1769275843380,-500.0,0.00017973,2]
[403231187,1769275843390,-500.0,0.00017973,2]
[403231189,1769275843399,-500.0,0.00017973,2]
[403231191,1769275843408,-500.0,0.00017973,2]
[403231193,1769275843417,-500.0,0.00017973,2]
[403231195,1769275843426,-500.0,0.00017973,2]
[403231197,1769275843435,-500.0,0.00017973,2]
[403231199,1769275843444,-500.0,0.00017973,2]
[403231201,1769275843453,-500.0,0.00017973,2]
[403231203,1769275843462,-500.0,0.00017973,2]
[403231205,1769275843471,-500.0,0.00017973,2]
[403231207,1769275843480,-500.0,0.00017973,2]
[403231209,1769275843490,-500.0,0.00017973,2]
[403231211,1769275843499,-300.0,0.00017973,2]
[403231213,1769275843510,-500.0,0.00017973,2]
[403231215,1769275843519,-500.0,0.00017973,2]
[403231217,1769275843528,-500.0,0.00017973,2]
[403231219,1769275843537,-500.0,0.00017973,2]
[403231221,1769275843547,-160.30101054,0.00017973,2]
[403231223,1769275843556,-500.0,0.00017973,2]
[403231225,1769275843566,-336.33747242,0.00017973,2]
[403231227,1769275843577,-500.0,0.00017973,2]
[403231230,1769275843587,-573.18204786,0.00017973,2]
[403231232,1769275843596,-500.0,0.00017973,2]
[403231234,1769275843605,-150.87644931,0.00017973,2]
[403231236,1769275843615,-500.0,0.00017973,2]
[403231238,1769275843624,-500.0,0.00017973,2]
[403231240,1769275843633,-500.0,0.00017973,2]
[403231242,1769275843642,-500.0,0.00017973,2]
[403231244,1769275843650,-208.11665623,0.00017973,2]
[403231246,1769275843659,-500.0,0.00017973,2]
[403231248,1769275843669,-500.0,0.00017973,2]
[403231250,1769275843677,-500.0,0.00017973,2]
[403231252,1769275843687,-161.29695591,0.00017973,2]
[403231254,1769275843696,-500.0,0.00017973,2]
[403231256,1769275843706,-500.0,0.00017973,2]
[403231257,1769275843715,-158.06916035,0.00017973,2]
[403231258,1769275843724,-160.05242782,0.00017973,2]
[403231259,1769275843733,-160.05160425,0.00017973,2]
[403231260,1769275843741,-160.95253726,0.00017973,2]
[403231261,1769275843750,-500.0,0.00017973,2]
[403231262,1769275843759,-500.0,0.00017973,2]
[403231263,1769275843768,-558.82608128,0.00017973,2]
[403231264,1769275843777,-521.52144255,0.00017973,2]
[403231265,1769275843786,-162.86883444,0.00017973,2]
[403231266,1769275843794,-500.0,0.00017973,2]
[403231267,1769275843803,-161.20666181,0.00017973,2]
[403231268,1769275843812,-161.7441045,0.00017973,2]
[403231269,1769275843820,-333.14308792,0.00017973,2]
[403231270,1769275843829,-159.93585942,0.00017973,2]
[403231271,1769275843838,-160.04899722,0.00017973,2]
[403231272,1769275843847,-160.03828545,0.00017973,2]
[403231273,1769275843856,-161.91357387,0.00017973,2]
[403231274,1769275843864,-500.0,0.00017973,2]
[403231275,1769275843874,-500.0,0.00017973,2]
[403231276,1769275843882,-166.43972344,0.00017973,2]
[403231277,1769275843891,-180.05440168,0.00017973,2]
[403231279,1769275843900,-485.5720463,0.00017973,2]
[403231281,1769275843909,-376.31157826,0.00017973,2]
[403231283,1769275843918,-500.0,0.00017973,2]
[403231285,1769275843927,-500.0,0.00017973,2]
[403231287,1769275843936,-335.93123339,0.00017973,2]
[403231289,1769275843945,-500.0,0.00017973,2]
[403231291,1769275843954,-500.0,0.00017973,2]
[403231293,1769275843963,-500.0,0.00017973,2]
[403231295,1769275843971,-500.0,0.00017973,2]
[403231297,1769275843980,-160.05235331,0.00017973,2]
[403231299,1769275843989,-160.0507877,0.00017973,2]
[403231301,1769275843998,-160.04998238,0.00017973,2]
[403231303,1769275844008,-160.05036115,0.00017973,2]
[403231305,1769275844017,-512.1744801,0.00017973,2]
[403231307,1769275844026,-160.03318119,0.00017973,2]
[403231309,1769275844035,-157.31967869,0.00017973,2]
[403231311,1769275844043,-160.04994992,0.00017973,2]
[403231313,1769275844052,-500.0,0.00017973,2]
[403231315,1769275844064,-160.05079201,0.00017973,2]
[403231317,1769275844073,-470.97442466,0.00017973,2]
[403231319,1769275844083,-162.47485834,0.00017973,2]
[403231321,1769275844093,-500.0,0.00017973,2]
[403231323,1769275844102,-500.0,0.00017973,2]
[403231325,1769275844111,-161.03754612,0.00017973,2]
[403231327,1769275844121,-500.0,0.00017973,2]
[403231329,1769275844130,-500.0,0.00017973,2]
[403231331,1769275844138,-508.83270828,0.00017973,2]
[403231333,1769275844147,-500.0,0.00017973,2]
[403231334,1769275844157,-500.0,0.00017973,2]
[403231336,1769275844166,-500.0,0.00017973,2]
[403231338,1769275844175,-169.51216753,0.00017973,2]
[403231340,1769275844185,-500.0,0.00017973,2]
[403231342,1769275844194,-500.0,0.00017973,2]
[403231344,1769275844203,-500.30897129,0.00017973,2]
[403231346,1769275844212,-167.78129088,0.00017973,2]
[403231348,1769275844221,-548.15607658,0.00017973,2]
[403231350,1769275844230,-165.72236604,0.00017973,2]
[403231352,1769275844240,-500.0,0.00017973,2]
[403231354,1769275844249,-511.74783648,0.00017973,2]
[403231356,1769275844258,-308.89625283,0.00017973,2]
[403231358,1769275844267,-284.08136107,0.00017973,2]
[403231360,1769275844276,-500.0,0.00017973,2]
[403231362,1769275844285,-500.0,0.00017973,2]
[403231364,1769275844295,-208.57012707,0.00017973,2]
[403231366,1769275844303,-161.24700646,0.00017973,2]
[403231368,1769275844312,-164.56853003,0.00017973,2]
[403231370,1769275844326,-500.0,0.00017973,2]
[403231372,1769275844338,-150.0,0.00017973,2]
[403231374,1769275844347,-410.92119628,0.00017973,2]
[403231376,1769275844356,-1000.0,0.00017976,2]
[403231378,1769275844366,-1000.0,0.00017976,2]
[403231380,1769275844376,-500.0,0.00017982,2]
[403231382,1769275844385,-1000.0,0.00017987,2]
[403231384,1769275844395,-790.60119074,0.00017989,2]
[403231386,1769275844404,-530.0,0.00017989,2]
[403231388,1769275844414,-1123.82271307,0.0001799,3]
[403231390,1769275844423,-790.60119074,0.0001799,2]
[403231392,1769275844431,-152.734551,0.00017997,2]
[403231394,1769275844441,-530.0,0.00017997,2]
[403231396,1769275844450,-530.0,0.00017997,2]
[403231398,1769275844459,-151.0,0.00017997,2]
[403231400,1769275844469,-150.0,0.00017999,2]
[403231402,1769275844478,-150.0,0.00017999,2]
[403231404,1769275844487,-156.86309582,0.00017999,2]
[403231406,1769275844496,-1008.959,0.00017999,2]
[403231408,1769275844506,-300.0,0.00017999,2]
[403231410,1769275844515,-300.0,0.00017999,2]
[403231412,1769275844524,-300.0,0.00017999,2]
[403231414,1769275844533,-530.0,0.00017999,2]
[403231416,1769275844542,-530.0,0.00017999,2]
[403231418,1769275844553,-530.0,0.00017999,2]
[403231420,1769275844563,-530.0,0.00017999,2]
[403231422,1769275844571,-530.0,0.00017999,2]
[403231424,1769275844580,-530.0,0.00017999,2]
[403231426,1769275844590,-530.0,0.00017999,2]
[403231428,1769275844599,-530.0,0.00017999,2]
[403231430,1769275844608,-530.0,0.00017999,2]
[403231432,1769275844617,-530.0,0.00017999,2]
[403231434,1769275844626,-530.0,0.00017999,2]
[403231436,1769275844635,-530.0,0.00017999,2]
[403231438,1769275844644,-530.0,0.00017999,2]
[403231440,1769275844654,-530.0,0.00017999,2]
[403231442,1769275844662,-530.0,0.00017999,2]
[403231444,1769275844671,-530.18668216,0.00017999,2]
[403231446,1769275844680,-413.71370939,0.00017999,2]
[403231448,1769275844690,-300.0,0.00017999,2]
[403231450,1769275844699,-300.0,0.00017999,2]
[403231452,1769275844708,-13686.32468372,0.00017999,2]
[403231454,1769275844717,-300.0,0.00017999,2]
[403231456,1769275844727,-719.15,0.00017999,2]
[403231458,1769275844737,-719.15,0.00017999,2]
[403231460,1769275844747,-719.15,0.00017999,2]
[403231462,1769275844755,-719.15,0.00017999,2]
[403231464,1769275844764,-719.15,0.00017999,2]
[403231466,1769275844774,-719.15,0.00017999,2]
[403231469,1769275844784,-719.15,0.00017999,2]
[403231470,1769275844793,-719.15,0.00017999,2]
[403231472,1769275844803,-719.15,0.00017999,2]
[403231474,1769275844811,-719.15,0.00017999,2]
[403231476,1769275844820,-719.15,0.00017999,2]
[403231478,1769275844829,-719.15,0.00017999,2]
[403231481,1769275844839,-719.15,0.00017999,2]
[403231483,1769275844848,-719.15,0.00017999,2]
[403231485,1769275844858,-719.15,0.00017999,2]
[403231486,1769275844867,-719.15,0.00017999,2]
[403231488,1769275844877,-719.15,0.00017999,2]
[403231491,1769275844886,-719.2552437,0.00017999,2]
[403231492,1769275844896,-300.0,0.00017999,2]
[403231494,1769275844906,-5848043.85780944,0.00018,2]
[403231497,1769275844922,-316.35,0.00018,2]
[403231636,1769275846180,-1.7e-07,0.00018,2]
[403231994,1769275849587,-620.42010943,0.00016156,2]
[403231996,1769275849597,-151.0,0.00016461,2]
[403231998,1769275849606,-545.02571183,0.00018,2]
[403232000,1769275849616,-2585.97151692,0.00018,2]
[403232018,1769275849774,-921.5606106,0.00018,2]
[403232021,1769275849785,-3488.50384544,0.00018,2]
[403235595,1769275934239,10000.0,0.00014,4]
[403235598,1769275983344,20000.0,0.000145,4]
[403235599,1769275991672,-300.0,0.00010636,2]
[403235600,1769275991699,-159.47121487,0.00010637,2]
[403235601,1769275991728,-3486.78357026,0.00010637,2]
[403235602,1769275991895,-2107.50042974,0.00010637,2]
[403235603,1769275991923,-405.243,0.00010637,2]
[403235604,1769275991950,-152.13538667,0.00010754,2]
[403235605,1769275991981,-150.0,0.00010853,2]
[403235606,1769275992310,-1400.12204307,0.00010854,2]
[403235607,1769275992362,-405.243,0.00010854,2]
[403235608,1769275992377,-152.13538667,0.00010854,2]
[403235609,1769275992419,-150.0,0.00010854,2]
[403235610,1769275992470,-4370.25236718,0.00010854,2]
[403235611,1769275992576,-10000.01,0.00010854,2]
[403235612,1769275992650,-10000.01,0.00010854,2]
[403235613,1769275992752,-10000.01,0.00010854,2]
[403235614,1769275992818,-10000.01,0.00010854,2]
[403235615,1769275992861,-10000.01,0.00010854,2]
[403235616,1769275992892,-10000.01,0.00010854,2]
[403235617,1769275992970,-10000.01,0.00010854,2]
[403235618,1769275994223,-10000.01,0.00010854,2]
[403235619,1769275997456,-10000.01,0.00010854,2]
[403235620,1769275997572,-10000.01,0.00010854,2]
[403235621,1769275997817,-10000.01,0.00010854,2]
[403235622,1769275997858,-10000.01,0.00010854,2]
[403235623,1769275997977,-10000.01,0.00010854,2]
[403235624,1769275998105,-10000.01,0.00010854,2]
[403235625,1769275999306,-10000.01,0.00010854,2]
[403235626,1769275999342,-10000.01,0.00010854,2]
[403235627,1769276041961,20000.0,0.000145,4]
[403235630,1769276070428,-422.0456,0.00010754,2]
[403235631,1769276070451,-439.99201346,0.00010844,2]
[403235632,1769276073580,-517.90929034,0.00010844,2]
[403235633,1769276074635,-162.96462613,0.00010844,2]
[403235634,1769276076754,-255.19206791,0.00010844,2]
[403235635,1769276078796,-454.1716,0.00010844,2]
[403235636,1769276087355,-155.03186656,0.00010844,2]
[403235637,1769276089229,-300.0,0.00010844,2]
[403235638,1769276090673,-325.69714419,0.00010844,2]
[403235639,1769276092774,-166.66,0.00010844,2]
[403235640,1769276094525,-367.40314113,0.00010844,2]
[403235641,1769276096501,-258.69331905,0.00010844,2]
[403235642,1769276101448,-175.38621614,0.00010843,2]
[403235643,1769276102899,-200.0,0.00010843,2]
[403235644,1769276105302,-218.34596674,0.00010843,2]
[403235645,1769276106318,-203.76731991,0.00010843,2]
[403235646,1769276107769,-273.0,0.00010843,2]
[403235647,1769276112521,-129.50049721,0.00010843,2]
[403235648,1769276112545,-40.15732661,0.00010844,2]
[403235649,1769276113927,-321.55787541,0.00010844,2]
[403235650,1769276115955,-161.37818768,0.00010844,2]
[403235653,1769276131026,-275.65429742,0.00010753,2]
[403235654,1769276134015,-222.33007091,0.00010753,2]
[403235655,1769276135602,-2.01563167,0.00010753,2]
[403235656,1769276135624,-357.84889641,0.00010844,2]
[403235657,1769276136722,-189.91285581,0.00010844,2]
[403235658,1769276138072,-155.26686864,0.00010844,2]
[403235659,1769276141214,-184.0,0.00010844,2]
[403235660,1769276142624,-159.47121487,0.00010844,2]
[403235661,1769276144913,-423.79,0.00010844,2]
[403235662,1769276147630,-300.0,0.00010844,2]
[403235663,1769276150417,-177.2800995,0.00010844,2]
[403235665,1769276152141,-272.39166125,0.00010844,2]
[403235668,1769276153834,-180.10092261,0.00010844,2]
[403235669,1769276155356,-183.95516542,0.00010844,2]
[403235670,1769276157978,-187.57386683,0.00010844,2]
[403235671,1769276159785,-382.16196347,0.00010844,2]
[403235672,1769276161749,-182.59685887,0.00010844,2]
[403235673,1769276163319,-314.91192107,0.00010844,2]
[403235679,1769276165024,-162.06320131,0.00010844,2]
[403235680,1769276167213,-240.12905618,0.00010844,2]
[403235681,1769276170032,-240.68893856,0.00010844,2]
[403235682,1769276171219,-821.94509455,0.00010844,2]
[403235683,1769276173852,-209.87094382,0.00010844,2]
[403235684,1769276176482,-221.84434696,0.00010844,2]
[403235685,1769276176738,-2010.31069032,0.00010844,2]
[403235686,1769276176766,-150.0,0.00010852,2]
[403235687,1769276176798,-265.45549434,0.00010853,2]
[403235688,1769276176826,-521.15502717,0.00010853,2]
[403235689,1769276176853,-500.0,0.00010853,2]
[403235690,1769276176880,-500.0,0.00010853,2]
[403235691,1769276176907,-411.0928762,0.00010853,2]
[403235692,1769276176935,-448.19179697,0.00010853,2]
[403235693,1769276177139,-500.0,0.00010853,2]
[403235694,1769276177168,-500.0,0.00010853,2]
[403235695,1769276177196,-500.0,0.00010853,2]
[403235696,1769276177225,-500.0,0.00010853,2]
[403235697,1769276177252,-150.0,0.00010853,2]
[403235698,1769276177279,-544.70194449,0.00010853,2]
[403235699,1769276177306,-500.0,0.00010853,2]
[403235700,1769276177333,-573.98491037,0.00010853,2]
[403235701,1769276177361,-500.0,0.00010853,2]
[403235702,1769276177388,-500.0,0.00010853,2]
[403235703,1769276177595,-500.0,0.00010853,2]
[403235704,1769276177628,-500.0,0.00010853,2]
[403235705,1769276177659,-500.0,0.00010853,2]
[403235706,1769276177698,-500.0,0.00010853,2]
[403235707,1769276177738,-500.0,0.00010853,2]
[403235708,1769276177770,-500.0,0.00010853,2]
[403235709,1769276177804,-500.0,0.00010853,2]
[403235710,1769276177835,-500.0,0.00010853,2]
[403235711,1769276178134,-500.0,0.00010853,2]
[403235712,1769276178199,-500.0,0.00010853,2]
[403235713,1769276179606,-500.0,0.00010853,2]
[403235714,1769276179754,-500.0,0.00010853,2]
[403235715,1769276179787,-0.01,0.00010853,2]
[403235716,1769276179897,-112.80683631,0.00010853,2]
[403235717,1769276179919,-131.23768853,0.00010853,2]
[403235718,1769276180868,-703.76231147,0.00010853,2]
[403235719,1769276180896,-250.0,0.00010853,2]
[403235720,1769276181489,-8092.48537706,0.00010854,2]
[403235721,1769276181516,-10000.01,0.00010854,2]
[403235722,1769276181888,-732.12055295,0.00010854,2]
[403235723,1769276182683,-10000.01,0.00010854,2]
[403235724,1769276182797,-10000.01,0.00010854,2]
[403235725,1769276182911,-10000.01,0.00010854,2]
[403235726,1769276183053,-300.0,0.00010854,2]
[403235727,1769276205978,-248.34761799,0.00010854,2]
[403235728,1769276207934,-190.48406699,0.00010854,2]
[403235729,1769276209597,-228.42331248,0.00010854,2]
[403235730,1769276210859,-240.49128124,0.00010854,2]
[403235733,1769276212353,-295.06693158,0.00010854,2]
[403235734,1769276213793,-165.57403326,0.00010854,2]
[403235736,1769276216329,-649.34143886,0.00010854,2]
[403235737,1769276217181,-10000.01,0.00010854,2]
[403235738,1769276217513,-10000.01,0.00010854,2]
[403235739,1769276217737,-10000.01,0.00010854,2]
[403235740,1769276218006,-10000.01,0.00010854,2]
[403235741,1769276220438,-225.52778323,0.00010854,2]
[403235742,1769276222694,-10000.01,0.00010854,2]
[403235743,1769276222755,-10000.01,0.00010854,2]
[403235744,1769276222805,-10000.01,0.00010854,2]
[403235745,1769276222848,-10000.01,0.00010854,2]
[403235746,1769276222969,-182.4341895,0.00010854,2]
[403235747,1769276225283,-274.0,0.00010854,2]
[403235749,1769276235423,-412.72971108,0.00010854,2]
[403235750,1769276239427,-1058.21312216,0.00010854,2]
[403235751,1769276243537,-288.38501587,0.00010854,2]
[403235752,1769276245103,-738.30969581,0.00010854,2]
[403235753,1769276247247,-639.41946431,0.00010854,2]